Cogmind - Beta 17 @@@ ROGUE MODE // 2026.08.02 @ 12:42:01 Player: Uranium-235 Result: Self-destructed Performance ------------- Evolutions (5) 2500 Regions Visited (4) 800 Robots Destroyed (39) 195 Value Destroyed (1286) 1286 Prototype IDs (4) 80 Alien Tech Used (0) 0 Bonus (780) 780 TOTAL SCORE: 5641 Bonus ------- Registered with UFD 300 Met Optimus in HQ 500 Friendly Fire -20 Cogmind --------- Core Integrity 504/1000 Matter 216/300 Energy 360/360 System Corruption 32% Temperature Cool (0) Movement Core (550) Ox10 Location -5/Factory Parts ------- > --- POWER (2) -------- Fission Core Micro Fission Core > --- PROPULSION (5) --- (None) > --- UTILITY (7) ------ Improved Heat Sink Improved Heat Sink Medium Storage Unit Improved Target Analyzer Hacking Suite > --- WEAPON (3) ------- Companion Sword > --- INVENTORY (10) --- Neutrino Core IFF Parser Improved Kinecellerator Heavy Phase Cannon Magnetic Acceleration Cannon Heavy Flak Cannon Improved Remote Datajack Power Maul Peak State ------------ > --- POWER ------------ Fission Core Micro Fission Core > --- PROPULSION ------- Improved Treads Wheel Wheel Wheel Wheel > --- UTILITY ---------- Improved Heat Sink Improved Heat Sink Improved Heat Sink Medium Storage Unit Improved Target Analyzer Hacking Suite Drone Bay > --- WEAPON ----------- Heavy Mace Makeshift Axe Companion Sword > --- INVENTORY -------- Advanced Weight Redist. System Improved Kinecellerator Heavy Phase Cannon Advanced Assault Cannon Magnetic Acceleration Cannon Enhanced Gauss Cannon Improved Proton Missile Launcher Smartbomb Launcher Power Maul [Rating: 58] Favorites ----------- Power Light Nuclear Core Engine Improved Deuterium Engine Power Core Light Nuclear Core Propulsion Light Treads Treads Light Treads Leg Aluminum Leg Wheel Wheel Hover Unit Antigrav System Utility Medium Storage Unit Device Structural Scanner Storage Medium Storage Unit Processor Improved Target Analyzer Hackware Hacking Suite Protection Layered Light Armor Plating Weapon Light Cannon Ballistic Gun Assault Rifle Ballistic Cannon Light Cannon Launcher Smartbomb Launcher Impact Weapon Heavy Mace Slashing Weapon Companion Sword Build | -11 -10 -10 -7 -5 ------- Run | Yrd Mat Sub Scr Fac Slots Evolved 10 | . . . . 10 Power 1 | . . . . 1 Propulsion 3 | . . . . 3 Utility 5 | . . . . 5 Weapon 1 | . . . . 1 Parts Attached 53 | 8 7 . 6 32 Power 9 | 1 1 . 1 6 Engine 5 | 1 . . 1 3 Core 4 | . 1 . . 3 Reactor . | . . . . . Propulsion 12 | 2 2 . 1 7 Treads 5 | . 2 . 1 2 Leg 2 | 2 . . . . Wheel 4 | . . . . 4 Hover 1 | . . . . 1 Flight . | . . . . . Utility 18 | 2 2 . . 14 Device 7 | 1 1 . . 5 Storage 3 | 1 1 . . 1 Processor 2 | . . . . 2 Hackware 1 | . . . . 1 Protection 5 | . . . . 5 Artifact . | . . . . . Weapon 14 | 3 2 . 4 5 Energy Gun . | . . . . . Energy Cannon . | . . . . . Ballistic Gun 3 | 3 . . . . Ballistic Cannon 6 | . 2 . 1 3 Launcher 1 | . . . . 1 Special Weapon . | . . . . . Impact Weapon 1 | . . . . 1 Slashing Weapon 3 | . . . 3 . Piercing Weapon . | . . . . . Special Melee Weapon . | . . . . . Unidentified Prototypes 2 | . . . 1 1 Parts Lost 27 | . . . . 27 Power 4 | . . . . 4 Propulsion 10 | . . . . 10 Utility 10 | . . . . 10 Weapon 3 | . . . . 3 Highest Loss Streak 8 | . . . . 8 To Critical Strikes 1 | . . . . 1 Average Backups 8 | 6 8 9 9 8 Power 1 | 1 1 2 2 . Propulsion . | 3 1 . . . Utility 2 | . 1 3 4 1 Weapon 3 | . 2 3 2 6 Tool/Special . | . . . . . Unused Backups 22 | . 5 1 6 10 Power 7 | . 2 1 3 1 Propulsion 2 | . 2 . . . Utility 5 | . 1 . 1 3 Weapon 7 | . . . 2 5 Tool/Special 1 | . . . . 1 Average Slot Usage (%) 92 | . 100 97 98 77 Engine 2 | . 1 . 3 4 Core 10 | . 12 14 10 4 Treads 22 | . 26 28 28 9 Wheel 1 | . . . . 5 Device 13 | . 14 14 14 13 Storage 11 | . 14 14 14 5 Protection 2 | . . . . 7 Ballistic Cannon 17 | . 25 25 20 4 Slashing Weapon 4 | . . . 6 9 Peak Build Rating 58 | 8 10 10 24 58 Average Rating 21 | 6 9 9 13 47 On Entrance 10 | . 8 10 10 24 Avg Prop Armor Cover (%) 6 | . . . . 6 Naked Turns . | . . . . . Heaviest Build 71 | 13 22 22 27 71 Greatest Support 70 | 20 40 40 50 70 Greatest Overweight (x) 4 | 3 . . . 4 Average Overweight (x) . | . . . . 1 Largest Inventory Capacity 10 | 8 10 10 10 10 Average Capacity 9 | 7 8 10 10 10 Most Carried 10 | 8 10 10 10 10 Average Carried 9 | 6 8 9 9 9 Final Capacity 10 | 8 10 10 10 10 Final Carried 10 | 8 10 8 9 8 Class Distribution -------------------- 75% | Mutant 15% | Scavenger-Mutant 7% | Tank Dominant Class ---------------- Mutant | -10/Materials Mutant | -10/Subcaves Mutant | -7/Scraptown Scavenger-Mutant | -5/Factory Resources | -11 -10 -10 -7 -5 ----------- Run | Yrd Mat Sub Scr Fac Matter Collected 1533 | 368 387 19 286 473 Remotely . | . . . . . Salvage Created 1695 | 118 414 . . 1163 Parts 73 | 8 20 . . 45 Haulers Intercepted 2 | . 1 . . 1 Recyclers Shooed . | . . . . . Parts Field Recycled . | . . . . . Retrieved Matter . | . . . . . Parts Self-Destructed 18 | . . 18 . . Prevented . | . . . . . Parts Restored . | . . . . . Kills | -11 -10 -10 -7 -5 ------- Run | Yrd Mat Sub Scr Fac Combat Hostiles Destroyed 26 | . 9 . . 17 Melee 14 | . . . . 14 Guns 2 | . 2 . . . Cannons 8 | . 7 . . 1 AOE 2 | . . . . 2 Classes Destroyed 11 | 2 4 . . 5 Worker 2 | . . . . 2 Builder 2 | . 1 . . 1 Tunneler 2 | 2 . . . . Hauler 2 | . 1 . . 1 Recycler 4 | 1 1 . . 2 Operator 1 | . 1 . . . Swarmer 6 | . . . . 6 Grunt 12 | . 9 . . 3 Brawler 2 | . . . . 2 Sentry 2 | . . . . 2 Programmer 4 | . . . . 4 Best Kill Streak 6 | 1 4 . . 6 Combat Bots Only 6 | . 3 . . 6 Max Kills in Single Turn 2 | 1 2 . . 2 Gunslinging . | . . . . . Exploded 2 | . . . . 2 Melee 1 | . . . . 1 Uniques/NPCs Destroyed . | . . . . . Combat | -11 -10 -10 -7 -5 -------- Run | Yrd Mat Sub Scr Fac Hostile Shots Fired 249 | . 30 . . 219 Missed 60 | . 11 . . 49 Hits 189 | . 19 . . 170 Melee 7 | . . . . 7 Projectile 182 | . 19 . . 163 AOE 2 | . . . . 2 Critical Strikes 10 | . . . . 10 Damage Taken 3995 | . 220 . . 3775 Core 496 | . . . . 496 Absorbed by Shields . | . . . . . Regen/Repaired (Parts) 50 | . . . . 50 Core Remaining (%) 100 | 100 . . 100 . Volleys Fired 81 | 13 38 20 . 10 Largest 3 | 2 2 2 . 3 Hottest 127 | 40 60 60 . 127 Shots Fired 166 | 26 77 41 . 22 Gun 40 | 26 14 . . . Cannon 122 | . 63 41 . 18 Launcher 4 | . . . . 4 Special . | . . . . . Kinetic 162 | 26 77 41 . 18 Thermal . | . . . . . Explosive 4 | . . . . 4 Electromagnetic . | . . . . . Robot Hit Streak 8 | 6 6 7 . 8 Robot Miss Streak 4 | 3 4 . . 3 Penetration Max . | . . . . . Secondary Targets . | . . . . . Shots Hit Robots 135 | 13 43 1 . 78 Core Hits 54 | 4 18 . . 32 Critical Kills 1 | . . . . 1 Critical Parts Destroyed 1 | . . . . 1 Critical Strikes 7 | . . . . 7 Smash 3 | . . . . 3 Sever 4 | . . . . 4 Melee Attacks 97 | . . . . 97 Impact 10 | . . . . 10 Slashing 87 | . . . . 87 Piercing . | . . . . . Sneak Attacks 10 | . . . . 10 Combat Hostiles . | . . . . . Follow-up Attacks 17 | . . . . 17 Damage Inflicted 4845 | 159 751 20 . 3915 Guns 272 | 159 113 . . . Cannons 1008 | . 638 20 . 350 Explosions 777 | . . . . 777 Melee 2788 | . . . . 2788 Ramming . | . . . . . Kinetic 1280 | 159 751 20 . 350 Thermal . | . . . . . Explosive 777 | . . . . 777 Electromagnetic . | . . . . . Impact 187 | . . . . 187 Slashing 2601 | . . . . 2601 Piercing . | . . . . . Highest Corruption 32 | . 6 6 6 32 Average Corruption 11 | . 5 6 6 18 Corruption Purged . | . . . . . Corruption Blocked . | . . . . . Effects 89 | . 10 33 . 46 Message Errors 17 | . . 8 . 9 Matter Fused 19 | . 3 7 . 9 Heat Flow Errors 15 | . 2 4 . 9 Energy Discharges 15 | . 1 6 . 8 Parts Fused 1 | . 1 . . . Data Loss (minor) 13 | . 1 4 . 8 Data Loss (major) 4 | . 1 2 . 1 Misfires 2 | . 1 1 . . Alerts 2 | . . 1 . 1 Misdirections 1 | . . . . 1 Overload Shots . | . . . . . Overflow Damage 381 | . 2 . . 379 Projectiles 3 | . 2 . . 1 Explosions 57 | . . . . 57 Melee 321 | . . . . 321 Knockbacks 5 | . 4 1 . . Impact . | . . . . . Kinetic 5 | . 4 1 . . Secondary . | . . . . . Self-Inflicted Damage 136 | . . . . 136 Shots 4 | . . . . 4 Rammed . | . . . . . Targets Rammed . | . . . . . Kicked . | . . . . . Crushed . | . . . . . Highest Temperature 371 | . 108 157 . 371 Average Temperature 78 | . 27 65 . 156 Received Heat Transfer 375 | . 126 . . 249 Siege Activations . | . . . . . Martial Activations . | . . . . . Shielding Activations . | . . . . . Robots Disrupted . | . . . . . Combat Hostiles . | . . . . . Robots Corrupted . | . . . . . Combat Hostiles . | . . . . . Parts Fried . | . . . . . Impact Corruptions 2 | . . . . 2 Robots Melted . | . . . . . Combat Hostiles . | . . . . . Parts Melted . | . . . . . Heat Transferred . | . . . . . Parts Sabotaged . | . . . . . Parts Stolen . | . . . . . Parts Stripped . | . . . . . Power Chain Reactions . | . . . . . Alert | -11 -10 -10 -7 -5 ------- Run | Yrd Mat Sub Scr Fac Maximum Alert Level . | . . . . . Low Security (%) 100 | 100 100 . . 100 Level 1 . | . . . . . Level 2 . | . . . . . Level 3 . | . . . . . Level 4 . | . . . . . Level 5 . | . . . . . High Security . | . . . . . Max Security . | . . . . . Peak Influence 99 | 5 99 . . 76 Initial . | . . . . . Average 28 | . 35 . . 27 Influence Increases 934 | 15 283 . . 636 Destroy 0b10 Robot/C 520 | . 180 . . 340 Destroy 0b10 Robot/NC 65 | 15 20 . . 30 Destroy Leader 114 | . 42 . . 72 Successful Hack 45 | . 25 . . 20 Disable Machine 15 | . . . . 15 Destroy Structure 55 | . 1 . . 54 Lose Combat Pursuer 120 | . 15 . . 105 Influence Decreases 858 | 15 283 . . 560 Time Decay 669 | 15 283 . . 371 Lost Part 189 | . . . . 189 Squads Dispatched 9 | . 3 . . 6 Investigation 3 | . 1 . . 2 Extermination 3 | . . . . 3 Reinforcement 3 | . 2 . . 1 Assault . | . . . . . Garrison . | . . . . . Intercept . | . . . . . Searches Triggered . | . . . . . Construction Impeded 1 | . . . . 1 Haulers Reinforced . | . . . . . Active Scanning Responses . | . . . . . Cargo Convoy Interrupts . | . . . . . Stealth | -11 -10 -10 -7 -5 --------- Run | Yrd Mat Sub Scr Fac Distress Signals 2 | . . . . 2 Communications Jammed . | . . . . . Distress Signals . | . . . . . Times Spotted 38 | . 15 . . 23 Peak Tracking Total 6 | . 3 . . 6 Tactical Retreats 5 | . 1 . . 4 Traps | -11 -10 -10 -7 -5 ------- Run | Yrd Mat Sub Scr Fac Traps Triggered 9 | . 5 . . 4 Indirectly . | . . . . . Trap Hack Attempts . | . . . . . Triggered . | . . . . . Disarmed . | . . . . . Reprogrammed . | . . . . . Reused . | . . . . . Traps Extracted . | . . . . . Installed . | . . . . . Triggered . | . . . . . Machines | -11 -10 -10 -7 -5 ---------- Run | Yrd Mat Sub Scr Fac Machines Disabled 1 | . . . . 1 Max in Single Turn 1 | . . . . 1 Machines Repaired . | . . . . . Machines Dismantled . | . . . . . Machines Sabotaged . | . . . . . Overloaded Fab Kills . | . . . . . Hacking | -11 -10 -10 -7 -5 --------- Run | Yrd Mat Sub Scr Fac Machines Accessed 11 | . 3 . 5 3 Terminals 5 | . 3 . . 2 Fabricators . | . . . . . Repair Stations 1 | . . . . 1 Recycling Units . | . . . . . Scanalyzers . | . . . . . Garrison Access . | . . . . . Total Hacks 51 | . 11 . 29 11 Successful 42 | . 7 . 29 6 Failed 9 | . 4 . . 5 Catastrophic . | . . . . . Database Lockouts . | . . . . . Manual 22 | . 15 . . 7 Terminals 20 | . 11 . . 9 Fabricators . | . . . . . Repair Stations 2 | . . . . 2 Recycling Units . | . . . . . Scanalyzers . | . . . . . Garrison Access . | . . . . . Terminal Hacks 37 | . 5 . 29 3 Record 28 | . . . 28 . Prototype ID Bank 1 | . 1 . . . Open Door 1 | . . . 1 . Level Access Points 1 | . . . . 1 Terminal Index 2 | . 1 . . 1 Locate Traps 3 | . 2 . . 1 Registered Components 1 | . 1 . . . Fabricator Hacks . | . . . . . Repair Station Hacks . | . . . . . Recycling Unit Hacks . | . . . . . Scanalyzer . | . . . . . Garrison Access Hacks . | . . . . . Unauthorized Hacks 5 | . 2 . . 3 Terminals 4 | . 2 . . 2 Botnet 4 | . 2 . . 2 Fabricators . | . . . . . Repair Stations 1 | . . . . 1 Patch 1 | . . . . 1 Recycling Units . | . . . . . Scanalyzers . | . . . . . Garrison Access . | . . . . . Data Cores Recovered . | . . . . . Used . | . . . . . Hacking Detections 5 | . 3 . . 2 Full Trace Events 1 | . 1 . . . Feedback Events . | . . . . . Feedback Blocked . | . . . . . Robot Schematics Acquired . | . . . . . Robots Built . | . . . . . Authchips . | . . . . . Time . | . . . . . Total Robot Build Rating . | . . . . . Part Schematics Acquired . | . . . . . Parts Built . | . . . . . Authchips . | . . . . . Time . | . . . . . Total Part Build Rating . | . . . . . Part Studies Acquired . | . . . . . Parts Repaired . | . . . . . Time . | . . . . . Parts Recycled . | . . . . . Recycled Matter . | . . . . . Retrieved Matter . | . . . . . Retrieved Components . | . . . . . Parts Scanalyzed . | . . . . . Part Schematics Acquired . | . . . . . Parts Damaged . | . . . . . Bothacking | -11 -10 -10 -7 -5 ------------ Run | Yrd Mat Sub Scr Fac Used RIF Installer . | . . . . . Robots Hacked . | . . . . . Non-combat . | . . . . . Combat . | . . . . . Robot Hacks Applied . | . . . . . Relay Couplers Released . | . . . . . Fabnet Peak Effective % . | . . . . . Robots Rewired . | . . . . . Allies Hacked . | . . . . . Hacks Repelled . | . . . . . Allies | -11 -10 -10 -7 -5 -------- Run | Yrd Mat Sub Scr Fac Total Allies . | . . . . . Largest Group . | . . . . . Highest-Rated Group . | . . . . . Highest-Rated Ally . | . . . . . Initial UFD Resources 39 | . . . . 39 Total Orders 2 | . . . . 2 EXPLORE 1 | . . . . 1 RETURN 1 | . . . . 1 Ally Attacks . | . . . . . Total Damage . | . . . . . Kills . | . . . . . Allies Corrupted . | . . . . . Allies Melted . | . . . . . Intel | -11 -10 -10 -7 -5 ------- Run | Yrd Mat Sub Scr Fac Active Infowar (turns) 3747 | 10 760 1168 1087 722 Structural 3553 | . 576 1168 1087 722 Seismic 788 | 10 184 . . 594 Robot Analysis Total . | . . . . . Derelict Logs Recovered 1 | . . 1 . . Drone Launches 1 | . . . . 1 Drone Recoveries 1 | . . . . 1 Exploration | -11 -10 -10 -7 -5 ------------- Run | Yrd Mat Sub Scr Fac Turns Passed 4534 | 154 760 1168 1087 1365 Spaces Moved 2465 | 82 385 691 664 643 Core 11 | 11 . . . . Treads 2037 | . 369 691 664 313 Legs 87 | 71 16 . . . Wheels 330 | . . . . 330 Hover . | . . . . . Flight . | . . . . . Fastest Speed 50 | 50 120 160 160 80 Average Speed 157 | 114 158 160 160 156 Slowest Speed 240 | 200 160 160 160 240 Overloaded Moves . | . . . . . Propulsion Burnouts . | . . . . . Robots Hopped . | . . . . . Potential Cave-ins . | . . . . . Cave-ins Triggered . | . . . . . Exploration Rate (%) 39 | 6 87 25 59 22 Regions Visited 4 Branch Regions 2 Pre-discovered Areas . | . . . . . Known Exits Taken . | . . . . . Unknown Exits Taken 4 | 1 1 1 1 . Scrap Searched 4 | . . . 4 . Spaces Dug 2 | . . . . 2 Terrain Destroyed 30 | . . . . 30 Melee 2 | . . . . 2 Projectile 6 | . . . . 6 AOE 22 | . . . . 22 Terrain Rammed . | . . . . . Walls Destroyed . | . . . . . Machines Disabled . | . . . . . Actions | -11 -10 -10 -7 -5 --------- Run | Yrd Mat Sub Scr Fac Total 2851 | 112 463 716 696 864 Wait 90 | . 14 . . 76 Move 2461 | 81 384 690 663 643 Hop . | . . . . . Pick Up 43 | 9 10 . 11 13 Fast Attach 27 | 6 . . . 21 Attach 16 | 1 . 2 3 10 Detach 4 | . . 2 2 . Swap 23 | 2 7 . 5 9 Drop 32 | . 10 2 11 9 Fire 81 | 13 38 20 . 10 Melee 73 | . . . . 73 Ram . | . . . . . Kick . | . . . . . Crush . | . . . . . Escape Stasis . | . . . . . Rewire 1 | . . . 1 . Trap . | . . . . . Miscellaneous . | . . . . . Route ------- -11/Scrapyard -10/Materials (discovered 5 exits: [*Mat x2] / [*Min x2] / [*Sub]) -10/Subcaves -7/Scraptown -5/Factory (discovered 4 exits: Fac x4) History --------- Turn | Location | Event 10 | -11/Scrapyard | Discovered new exit (range 15) 155 | -11/Scrapyard | Entered Materials 205 | -10/Materials | Discovered new exit (range 3) 247 | -10/Materials | Discovered new exit (range 12) 311 | -10/Materials | Build established: Mutant 426 | -10/Materials | Discovered new exit (range 14) 614 | -10/Materials | Discovered new exit (range 16) 726 | -10/Materials | Discovered new exit (range 15) 915 | -10/Materials | Entered Subcaves 916 | -10/Subcaves | Approached by a straggling Scientist 983 | -10/Subcaves | Learned Materials terminal intel 1139 | -10/Subcaves | A swath of the cavern ceiling suddenly collapsed 2078 | -10/Subcaves | Scientist uncovered a shortcut to Scraptown 2083 | -10/Subcaves | Entered Scraptown 2110 | -7/Scraptown | System corruption cleaned by C-Scrubber 2483 | -7/Scraptown | Visited Comm Corps 2539 | -7/Scraptown | Visited Assassins FH 2606 | -7/Scraptown | Visited UFD Registry 2606 | -7/Scraptown | Registered with UFD as "Wrenchtube" 2675 | -7/Scraptown | Visited Cartography Club 2732 | -7/Scraptown | Visited Science Testing Area 2772 | -7/Scraptown | Visited Observation Area 2836 | -7/Scraptown | Visited Abandonware Association 2853 | -7/Scraptown | Learned abandonware demo "MELTYB.EXE" 2892 | -7/Scraptown | Visited DA-N13 Charitable Foundation 2900 | -7/Scraptown | Found DCF Scrap (29 items) 2993 | -7/Scraptown | Met Optimus 2993 | -7/Scraptown | Accepted into 0bPrime 3067 | -7/Scraptown | Visited Sword Containment 3083 | -7/Scraptown | Found Prototype Slashing Weapon 3083 | -7/Scraptown | Identified Companion Sword 3167 | -7/Scraptown | Discovered new exit (range 3) 3170 | -7/Scraptown | Entered Factory 3170 | -5/Factory | Evolved 10 slots: Power x1, Propulsion x3, Utility x5, Weapon x1 3186 | -5/Factory | Found Prototype Launcher 3504 | -5/Factory | Build established: Tank 3650 | -5/Factory | Lost 8 parts (2p2n3u1w) 3880 | -5/Factory | System corruption reached 10% 3916 | -5/Factory | System corruption reached 30% 3939 | -5/Factory | Lost 7 parts (2p1n3u1w) 4153 | -5/Factory | Build established: Scavenger-Mutant 4323 | -5/Factory | Identified exit to Factory 4331 | -5/Factory | Lost 3 parts (2n1u) 4517 | -5/Factory | Identified Smartbomb Launcher 4535 | -5/Factory | Self-destructed Last Messages --------------- 04517_ Hrd. Medium Armor Plating destroyed. 04517_ Dropped Mak. Axe. 04517_ Identified Smartbomb Launcher. 04521_ The unstable cave ceiling collapses. 04524_ U-05 Engineer builds a Wall. 04526_ The unstable cave ceiling collapses. 04526_ Tesla Rifle crushed. 04528_ U-05 Engineer builds a Wall. 04531_ System corrupted: Matter fused (-5). 04531_ Wheel destroyed. 04531_ Destroyed Wheel. 04532_ ALERT: Construction progress impeded, dispatching reinforcements to local area. 04532_ Imp. Medium Armor Plating destroyed. 04533_ Destroyed Wheel. 04533_ Destroyed Lgt. Ion Engine. 04533_ G-50 Soldier destroyed. 04533_ B-60 Warrior destroyed. 04533_ Smartbomb Launcher destroyed. 04533_ Imp. Treads destroyed. Map ----- +----------------------------------------------------+ | ? ????????? ????? # ? | | ? ????????? ? ??? # """" ? | | ? ????????? ]?? # """" " | | ? ?????????# ? + """" " | | ? ?????????# ? # """" " | | ? ?????????# """" # | | # #????????# """" ? # | | # #????????# """" #??########## ######## | | # #????????# """" #???????????# #??????? | | # #????????# """" ####????????# #??????? | | # #????????# """ #????????# #??????? | | # #????????# """" ########## #??????? | | # #????????# # # #??##### | | # #????????# + ! # #? | | #/########## # # #? | | =# # # # | | "" """ # ! + < # # | | "Y """ # < + + """ "" | | "" """ # g # # """ "" | | # # % # # """ "" | | ####+######## % u + #? | | # #????# p #########+########## | | # ! ###### # # #? | | + ## # #? | | # ! ######### % # """""" """""" #? | | # #???????# @ # """""" """""" #? | | ?#######???????# ## """""" """""" #? | | ???????????????# #???"""""" """"""???? | | ???????????????# ;##????? ??????? | | ???????????????##;; ;;#?????????####???????? | | | | | | | | | | | | | | | | | | | | | | | | | | | | | | | | | | | | | | | | | +----------------------------------------------------+ Best States ------------- Heat Dissipation 82 Energy Generation 28 Energy Capacity 490 Matter Stores 300 Matter Capacity 300 Sight Range 16 Terrain Scan Density 10 Armor Coverage 525 Evasion (%) 55 Target Analysis 6 Recoil Reduction 3 Kinecelleration 30 Offensive Hacking 10 Item Schematics ----------------- None Robot Schematics ------------------ None Fabricated ------------ Nothing Repaired ---------- Nothing Studied --------- None Alien Tech Used ----------------- None Achievements -------------- Civilization 2243 Link The Feds Nice Directions, Buddy Challenges ------------ None Game ------ Seed ExoskeletonBehemothBoomstick Manual? 0 Play Time 00:44:02 Cumulative 85.6 hours Start 2026.08.02 @ 10:18:40 End 2026.08.02 @ 12:42:01 Sessions 3 Manual Loads 0 Difficulty Rogue Special Mode None Game No. 87 Rogue 87 Adventurer 0 Explorer 0 Win Type - Total 0 Types 0/0/0/0/0/0/0/0/0/0 Lore% 33 Gallery% 43 Achievement% 34 Wizard Run 0 Options --------- Layout 1 ASCII 0 Keyboard 1 Movement Vi Keybinds 0 Fullscreen 1 Font 24/Smallcaps Map View 50x35 Zoom Use 0% Tactical HUD 1 Map Filters NONE Filters NONE Steam 1 RUN: 38acc2c0-df27-4738-9954-dfe8f498b9d9